bitfinex/quotes_ETHUSD_20250131
["timestamp","ask_amount","ask_price","bid_price","bid_amount"]
[1738340239657,0.0075,3407.9,3407.3,2.93482]
[1738340240403,0.0075,3407.9,3407.4,2.93471]
[1738340240706,0.232,3408.3,3407.9,2.93428]
[1738340240871,0.232,3408.3,3407.1,0.02934363]
[1738340241070,0.232,3408.3,3407.7,2.93451]
[1738340241277,3.16602,3408.3,3407.7,2.93451]
[1738340241471,3.16602,3408.3,3407.5,2.9347]
[1738340241472,2.94167,3408.2,3407.5,2.9347]
[1738340241677,0.0075,3408.2,3407.0,16.88529535]
[1738340241870,0.0075,3408.2,3407.6,2.93455]
[1738340242084,0.0075,3408.2,3407.7,2.93444]
[1738340242403,0.0075,3408.2,3407.9,2.93429]
[1738340242573,0.0075,3408.2,3407.8,2.93443]
[1738340243359,1.6375,3410.1,3408.9,2.93349]
[1738340243557,1.8705,3410.1,3409.6,2.93288]
[1738340243773,1.8705,3410.1,3408.4,2.93391]
[1738340243774,1.8705,3410.1,3409.4,2.93306]
[1738340244009,0.232,3410.0,3409.4,2.93306]
[1738340244211,0.92124866,3410.0,3408.2,2.9341]
[1738340244407,0.232,3410.0,3409.5,2.93297]
[1738340245713,0.0075,3409.7,3408.6,2.9337]
[1738340245917,0.0075,3409.7,3407.9,2.93435]
[1738340245918,0.015,3409.4,3407.9,2.93435]
[1738340246068,0.0075,3408.2,3407.6,2.93453]
[1738340246269,0.2395,3408.2,3407.6,2.93453]
[1738340246466,0.2395,3408.2,3407.4,2.93473]
[1738340246467,0.2395,3408.2,3407.7,2.93447]
[1738340246815,0.2395,3408.2,3408.0,0.2160033]
[1738340247504,1.7657,3408.3,3408.0,0.2160033]
[1738340247729,1.7657,3408.3,3408.0,3.1502533]
[1738340247899,0.232,3408.3,3408.0,0.2160033]
[1738340248065,0.232,3408.3,3408.1,2.93417]
[1738340248407,0.232,3408.3,3407.9,2.93433]
[1738340248914,0.232,3408.3,3408.0,2.93425]
[1738340249092,0.231,3408.4,3408.0,2.93425]
[1738340249463,0.231,3408.4,3407.9,2.93433]
[1738340250425,0.231,3408.4,3407.2,2.93491]
[1738340250562,0.231,3408.4,3407.8,2.93437]
[1738340250763,0.231,3408.4,3407.9,0.03036742]
[1738340251512,0.231,3408.4,3407.9,0.24635942]
[1738340252380,0.015,3408.3,3407.9,0.24635942]
[1738340252684,2.93427,3408.0,3407.9,0.24635942]
[1738340252990,4.890797,3408.0,3407.9,0.03036742]
[1738340253383,4.890797,3408.0,3407.0,16.88529535]
[1738340253384,2.9422,3407.5,3407.0,16.88529535]
[1738340253579,0.0075,3407.3,3407.0,16.88529535]
[1738340253922,2.93435,3407.9,3407.1,0.03163088]
[1738340254084,2.94996,3407.2,3407.1,0.03163088]
[1738340254282,4.59656,3407.2,3407.1,0.03163088]
[1738340254869,1.6541,3407.2,3407.1,0.03163088]
[1738340255270,4.58906,3407.2,3407.1,0.03163088]
[1738340255497,5.348945,3407.2,3407.1,0.03163088]
[1738340256401,4.59656,3407.2,3407.1,0.03163088]
[1738340256972,0.229,3407.2,3407.1,0.03163088]
[1738340257223,1.6639,3407.6,3407.1,2.96667088]
[1738340257372,0.0075,3407.6,3407.1,2.96667088]
[1738340258320,0.0075,3407.6,3407.2,0.2162723]
[1738340258499,0.0075,3407.6,3407.2,3.1512323]
[1738340258706,0.0075,3407.6,3407.3,0.03198675]
[1738340259423,0.228,3407.6,3407.3,0.03198675]
[1738340259886,0.0075,3407.5,3407.3,0.03198675]
[1738340260088,2.94978,3407.4,3407.3,0.03198675]
[1738340260295,3.267558,3407.4,3407.3,0.51908393]
[1738340261109,3.267558,3407.4,3407.3,0.24825905]
[1738340262403,2.93504,3407.1,3407.0,16.88529535]
[1738340262609,2.95004,3407.1,3407.0,16.88529535]
[1738340263741,2.95004,3407.1,3407.0,16.39421604]
[1738340264031,3.7282968,3407.1,3407.0,16.39421604]
[1738340264337,1.6037,3407.0,3405.2,3.1108485]
[1738340264504,0.0075,3405.8,3405.2,3.1108485]
[1738340264711,0.0075,3405.7,3405.2,3.1108485]
[1738340264924,2.94377,3405.7,3405.2,0.1742385]
[1738340265674,0.015,3405.4,3405.2,0.1742385]
[1738340265839,0.015,3405.4,3405.3,0.27134989]
[1738340265996,0.015,3405.4,3405.3,0.48832659]
[1738340266198,1.5385,3406.1,3405.3,3.42491659]
[1738340266423,4.6144951,3406.1,3405.4,2.9365]
[1738340266646,0.015,3406.0,3405.3,3.42491659]
[1738340266796,0.015,3405.7,3405.3,0.48832659]
[1738340267528,0.015,3405.7,3405.4,0.2169767]
[1738340267942,0.015,3405.7,3405.4,0.48832659]
[1738340268111,2.95109,3405.9,3405.4,0.48832659]
[1738340268316,0.015,3405.9,3405.4,3.42478659]
[1738340268648,2.93552,3406.6,3405.4,3.42478659]
[1738340268649,0.229,3406.5,3406.2,2.93575]
[1738340269011,0.0075,3406.4,3406.0,2.93598]
[1738340269354,0.0075,3406.4,3406.0,2.93596]
[1738340269562,0.0075,3406.5,3406.1,2.93588]
[1738340269938,0.0075,3406.5,3406.2,2.96716247]
[1738340270134,2.18165342,3406.8,3406.4,2.93561]
[1738340270341,0.228,3407.0,3406.5,2.93556]
[1738340270537,0.228,3407.0,3406.7,2.93539]
[1738340270741,0.228,3407.0,3406.6,0.03168778]
[1738340270941,0.015,3406.9,3405.6,0.02935571]
[1738340271164,0.015,3406.9,3406.7,0.03166011]
[1738340271358,0.015,3406.9,3406.1,2.93582]
[1738340271544,0.0075,3406.9,3406.8,0.03163245]
[1738340271751,0.0075,3406.8,3406.3,2.93566]
[1738340271965,0.0075,3406.8,3405.7,0.53655529]
[1738340272137,0.015,3406.7,3406.2,0.27048144]
[1738340272344,0.0075,3406.7,3406.6,2.93547]
[1738340272541,0.0075,3406.7,3406.4,2.93557]
[1738340272743,0.015,3407.0,3406.5,2.93554]
[1738340272925,0.0075,3406.8,3406.5,2.93554]
[1738340273326,2.95032,3406.8,3406.1,2.93586]
[1738340273666,0.015,3406.6,3406.1,2.9359]
[1738340274170,0.228,3406.9,3406.3,2.93565]
[1738340274530,0.015,3406.8,3406.3,2.93565]
[1738340275033,0.015,3406.8,3405.6,0.15293]
[1738340275233,0.015,3406.8,3406.4,3.20646082]
[1738340275549,0.015,3406.8,3406.6,2.93544]
[1738340275959,0.015,3406.8,3406.4,0.27089082]
[1738340276164,2.93473,3407.5,3406.5,1.6644]
[1738340276366,0.227,3407.4,3406.5,1.6644]
[1738340276547,0.227,3407.4,3406.8,2.93529]
[1738340276548,0.015,3407.3,3406.8,2.93529]
[1738340276753,2.94987,3407.3,3406.7,2.93532]
[1738340277092,0.015,3407.3,3406.8,2.93526]
[1738340277290,0.015,3407.3,3406.7,2.93532]
[1738340277498,0.015,3407.3,3407.2,2.93496]
[1738340277806,0.015,3407.3,3407.0,2.9351]
[1738340277949,0.015,3407.3,3407.1,2.93502]
[1738340278149,0.015,3407.3,3407.2,0.27089082]
[1738340279860,0.59513895,3407.3,3407.2,0.27089082]
[1738340280249,0.97071385,3407.3,3407.2,0.27089082]
[1738340280750,0.3905749,3407.3,3407.2,0.0315218]
[1738340280952,0.015,3407.3,3407.2,0.0315218]
[1738340281194,0.015,3407.3,3407.2,2.9664818]
[1738340281362,0.015,3407.3,3407.2,0.0315218]
[1738340281558,0.015,3407.3,3407.2,3.23737262]
[1738340281789,0.015,3407.3,3407.2,3.20585082]
[1738340281990,0.015,3407.3,3407.2,0.30202541]
[1738340282404,2.94987,3407.3,3407.2,0.30202541]
[1738340282589,3.560831,3407.3,3407.2,0.30202541]
[1738340283167,3.560831,3407.3,3407.2,0.03113459]
[1738340283367,0.015,3407.1,3406.8,0.27089082]
[1738340283601,0.015,3407.1,3406.8,3.20618082]
[1738340283783,0.0075,3407.1,3406.9,2.93513]
[1738340283982,0.225,3407.6,3406.8,0.27089082]
[1738340284169,1.6571,3408.1,3407.5,2.93462]
[1738340284367,1.6571,3408.1,3407.0,1.6053]
[1738340284368,0.459109,3408.1,3407.2,2.93496]
[1738340284589,0.225,3408.2,3407.2,2.93496]
[1738340284915,0.015,3408.1,3408.0,2.93427]
[1738340285077,0.225,3408.2,3408.1,2.93418]
[1738340285278,2.93351,3408.9,3407.9,1.6399]
[1738340285279,0.0075,3408.9,3408.3,2.93399]
[1738340285588,2.93325,3409.2,3408.6,2.93375]
[1738340285589,0.015,3408.7,3408.6,2.93375]
[1738340285760,0.225,3409.3,3409.0,2.93338]
[1738340285965,0.225,3409.3,3409.2,2.93323]
[1738340286160,4.26944223,3410.0,3409.4,2.93299]
[1738340286494,1.6221,3410.1,3408.8,1.5106]
[1738340286495,0.0075,3409.4,3408.9,2.93343]
[1738340286805,0.015,3409.4,3408.9,2.93343]
[1738340287009,0.015,3409.0,3408.5,2.93377]
[1738340287308,0.015,3409.0,3408.6,2.93367]
[1738340287605,0.0075,3408.9,3408.4,2.93391]
[1738340287792,2.94117,3408.7,3408.1,2.93418]
[1738340287992,0.0075,3408.7,3407.9,1.5353]
[1738340288304,0.0075,3408.7,3408.4,2.93385]
[1738340288682,0.015,3408.9,3408.4,2.93385]
[1738340289078,0.015,3408.9,3408.2,2.93403]
[1738340289079,0.0075,3408.9,3408.7,2.93366]
[1738340289282,2.93291,3409.6,3408.3,2.93397]
[1738340289621,4.58373,3409.8,3408.7,2.93364]
[1738340289622,0.015,3409.4,3408.7,2.93364]
[1738340289820,0.015,3409.0,3408.3,2.934]
[1738340289981,0.015,3409.0,3408.4,2.9339]
[1738340290180,0.015,3409.0,3408.7,2.93361]
[1738340290427,6.30383652,3410.0,3408.7,3.226981]
[1738340290428,2.6489897,3409.8,3408.7,3.226981]
[1738340290719,4.99231109,3409.8,3409.1,2.93326]
[1738340290908,0.015,3409.7,3409.1,2.93326]
[1738340291223,4.99231109,3409.8,3408.0,1.5579]
[1738340291224,0.015,3409.0,3408.8,0.27021818]
[1738340291533,4.59629,3408.9,3408.8,0.27021818]
[1738340291822,4.82129,3408.9,3408.8,0.31288844]
[1738340291989,4.82129,3408.9,3408.8,0.27021818]
[1738340292209,6.22721165,3408.9,3408.8,0.27021818]
[1738340292405,3.27872165,3408.9,3408.0,2.93424]
[1738340292631,0.015,3408.5,3408.0,2.93424]
[1738340292808,2.9491,3408.2,3408.1,0.03222841]
[1738340293134,0.0075,3408.1,3407.8,0.27021818]
[1738340293303,0.0075,3407.9,3407.8,0.27021818]
[1738340293639,0.0075,3407.9,3407.5,2.93464]
[1738340293807,2.93401,3408.3,3407.5,2.93464]
[1738340294007,2.93374,3408.7,3408.0,2.93421]
[1738340294220,1.40592165,3408.9,3408.0,1.5145]
[1738340294530,0.224,3409.0,3408.6,2.93368]
[1738340294731,0.015,3408.9,3408.6,2.93368]
[1738340294936,0.0075,3408.9,3408.8,2.93358]
[1738340295240,2.93299,3409.5,3408.0,1.5145]
[1738340295241,0.224,3409.5,3409.0,2.93338]
[1738340295532,0.68307131,3409.4,3409.1,2.93332]
[1738340295713,0.015,3409.4,3409.1,2.96295726]
[1738340295910,0.015,3409.4,3409.1,0.02963726]
[1738340296212,3.05767791,3410.5,3408.4,1.5846]
[1738340296213,0.015,3409.1,3408.4,1.5846]
[1738340296739,0.0075,3408.7,3408.1,2.93414]
[1738340296908,1.6037,3409.2,3408.0,2.93424]
[1738340296909,0.015,3408.6,3408.0,2.93424]
[1738340297101,2.94876,3408.6,3408.0,2.93424]
[1738340297303,0.015,3408.6,3408.0,2.93424]
[1738340297609,2.94881,3408.6,3407.8,2.93442]
[1738340297837,0.015,3408.3,3407.8,2.93442]
[1738340298201,0.015,3408.1,3407.6,2.93459]
[1738340298634,0.0075,3407.9,3407.4,2.93475]
[1738340298823,0.0075,3407.9,3407.5,2.93462]
[1738340299225,0.015,3408.0,3407.5,2.93462]
[1738340299545,0.4900378,3408.0,3407.5,2.93462]
[1738340300198,0.015,3408.0,3407.9,2.93435]
[1738340300403,0.015,3408.0,3407.7,2.93451]
[1738340300599,0.015,3408.0,3407.3,1.6597]
[1738340300803,1.5406,3407.9,3406.8,4.56165]
[1738340301145,2.93555,3406.6,3406.0,1.6264]
[1738340301329,0.015,3406.5,3406.0,4.56233]
[1738340301502,0.015,3406.5,3406.2,2.93581]
[1738340301707,0.0075,3406.5,3405.6,4.56266]
[1738340302051,0.0075,3406.4,3406.3,0.27097993]
[1738340302902,0.015,3406.6,3406.3,0.27097993]
[1738340303106,0.0075,3406.4,3406.3,0.27097993]
[1738340303747,1.7646,3406.9,3406.3,0.27097993]
[1738340303748,3.15777,3407.5,3406.7,2.9353]
[1738340303944,0.987131,3407.5,3406.7,2.93537]
[1738340304260,0.015,3407.0,3406.4,2.93564]
[1738340304600,2.95013,3407.0,3406.4,2.93564]
[1738340304946,0.015,3406.7,3406.2,2.93582]
[1738340305157,0.015,3406.5,3406.0,2.93596]
[1738340305501,0.015,3406.5,3406.1,2.93589]
[1738340305722,0.0075,3406.5,3406.0,2.93596]
[1738340306247,0.0075,3406.6,3406.1,3.2068978]
[1738340306454,0.015,3406.7,3406.1,3.2068978]
[1738340306745,0.015,3406.7,3406.3,2.93571]
[1738340306962,0.223,3407.6,3407.1,2.93502]
[1738340307164,0.223,3407.6,3407.3,2.9348]
[1738340307361,0.223,3407.6,3407.1,3.228512]
[1738340307562,0.015,3407.5,3407.2,2.9349]
[1738340308573,0.015,3407.7,3407.3,2.93486]
[1738340309220,0.015,3407.7,3407.2,2.9349]
[1738340309221,0.0075,3407.7,3407.2,2.9349]
[1738340309421,0.0075,3407.7,3407.3,2.93485]
[1738340309628,0.0075,3407.7,3407.4,2.93472]
[1738340309845,1.5689,3408.2,3407.5,2.9347]
[1738340310057,0.2,3410.0,3407.5,2.9347]
[1738340310058,2.9334,3409.1,3408.4,2.93386]
[1738340310246,0.223,3409.2,3408.4,2.93386]
[1738340310450,2.93336,3409.1,3408.4,2.93391]
[1738340310632,0.015,3408.9,3408.4,2.93391]
[1738340310864,0.015,3408.7,3408.2,2.93408]
[1738340311122,0.015,3408.7,3408.1,2.93416]
[1738340311314,0.015,3408.7,3408.2,2.93405]
[1738340311520,0.015,3408.7,3408.3,2.93401]
[1738340311715,0.0075,3408.7,3408.3,2.93401]
[1738340312218,0.0075,3408.8,3408.3,2.93401]
[1738340312563,0.0075,3408.8,3408.4,2.93384]
[1738340312736,0.015,3409.0,3408.4,2.93384]
[1738340312938,2.93342,3409.0,3408.4,2.93384]
[1738340313170,3.15527,3409.2,3408.6,2.93371]
[1738340313409,3.248857,3409.1,3408.4,2.93384]
[1738340313565,2.93344,3409.0,3408.4,2.93384]
[1738340314693,1.6661,3409.6,3408.9,2.93343]
[1738340314820,1.6661,3409.6,3408.6,1.6164]
[1738340314821,2.93275,3409.8,3409.2,2.93323]
[1738340315027,0.015,3409.6,3409.4,2.93304]
[1738340315333,0.0075,3409.7,3409.1,2.93325]
[1738340315551,0.015,3409.5,3408.9,2.93349]
[1738340315752,0.015,3409.5,3408.6,1.6164]
[1738340315932,0.015,3409.5,3409.3,2.93312]
[1738340316261,0.015,3409.8,3409.4,2.93304]
[1738340316464,0.015,3409.8,3409.0,2.93332]
[1738340316650,0.0075,3409.6,3409.0,2.93332]
[1738340316965,0.0075,3409.6,3408.9,2.93347]
[1738340316966,0.0075,3409.6,3409.1,2.93326]
[1738340317461,2.93281,3409.7,3403.9,38.825]
[1738340317462,0.0075,3409.0,3408.3,2.93399]
[1738340317622,0.015,3408.8,3408.3,2.93399]
[1738340318081,0.015,3408.8,3407.6,2.93454]
[1738340318082,0.0075,3408.4,3407.6,1.5866]
[1738340318363,1.6647,3409.1,3407.8,2.93439]
[1738340318532,0.015,3409.0,3407.7,2.93444]
[1738340318862,2.93357,3408.9,3408.1,2.9341]
[1738340319078,0.221,3409.3,3407.6,1.5866]
[1738340319224,0.221,3409.3,3408.0,2.93427]
[1738340319225,2.93366,3408.8,3408.0,2.93427]
[1738340319564,0.221,3409.3,3407.6,1.5866]
[1738340319565,2.93401,3408.3,3407.6,4.52119]
[1738340319734,0.015,3408.2,3407.2,4.45523]
[1738340319938,1.5054,3408.6,3407.5,2.93461]
[1738340319939,2.93398,3408.4,3407.5,2.93461]
[1738340320124,3.15603,3408.3,3407.5,2.93461]
[1738340320324,0.015,3408.2,3407.7,2.9345]
[1738340320728,0.015,3408.2,3407.3,2.93487]
[1738340321067,2.94927,3408.0,3407.3,2.93487]
[1738340321271,0.015,3407.5,3406.7,1.6414]
[1738340321448,0.0075,3407.5,3407.1,2.93503]
[1738340321657,0.0075,3407.5,3407.2,2.93491]
[1738340321824,5.44796024,3408.2,3406.5,2.93549]
[1738340322024,0.015,3407.2,3406.5,2.93549]
[1738340322235,0.015,3407.2,3406.2,1.6414]
[1738340322456,0.015,3407.2,3406.6,2.93545]
[1738340322642,2.94996,3407.2,3406.6,2.93545]
[1738340322838,0.015,3406.9,3406.3,2.93573]
[1738340323072,2.9352,3407.0,3406.1,2.93586]
[1738340323073,0.015,3407.0,3406.1,2.93586]
[1738340323236,2.95027,3406.9,3406.0,2.93593]
[1738340323451,0.015,3406.7,3405.8,1.6414]
[1738340324028,0.015,3406.7,3406.1,2.93582]
[1738340324225,0.0075,3406.7,3406.3,2.93565]
[1738340324437,0.222,3406.8,3406.0,0.02935505]
[1738340324438,0.222,3406.8,3406.7,2.93539]
[1738340324672,4.80138,3407.8,3407.0,2.93512]
[1738340324838,2.93453,3407.7,3407.0,2.93512]
[1738340325041,1.8669,3407.8,3406.7,0.587094]
[1738340325256,3.82956024,3407.7,3405.8,1.6414]
[1738340325573,0.015,3406.8,3406.3,2.93571]
[1738340325993,2.93479,3407.4,3406.5,2.93552]
[1738340326279,0.0075,3407.0,3406.3,2.93571]
[1738340326570,0.0075,3407.0,3406.6,2.93539]
[1738340326756,0.015,3406.9,3406.1,2.93582]
[1738340326956,0.015,3406.7,3406.1,2.93582]
[1738340327355,0.015,3406.7,3406.2,2.93575]
[1738340327554,4.5142,3407.5,3405.8,7.51365]
[1738340327555,0.015,3406.5,3405.8,7.51365]
[1738340327871,0.015,3406.5,3405.3,1.6535]
[1738340328072,0.015,3406.5,3405.2,0.1742385]
[1738340328073,1.631,3407.1,3406.7,2.93538]
[1738340328256,1.631,3407.5,3406.3,1.6535]
[1738340328568,1.631,3407.5,3406.0,2.93599]
[1738340328569,0.015,3407.3,3406.0,2.93599]
[1738340328754,0.0075,3407.0,3406.2,2.93575]
[1738340329081,1.6303,3406.5,3405.7,2.93623]
[1738340329280,1.6303,3406.5,3405.9,2.93604]
[1738340329690,0.015,3406.3,3405.5,1.6549]
[1738340329847,0.015,3406.3,3405.2,0.1742385]
[1738340329848,2.95079,3406.3,3405.2,0.1742385]
[1738340330035,2.95079,3406.3,3405.6,2.93632]
[1738340330590,3.3752091,3408.2,3405.5,1.5438608]
[1738340330871,0.57324858,3407.5,3405.5,1.5145]
[1738340331031,0.22035486,3407.4,3406.9,2.9352]
[1738340331235,1.6303,3407.7,3407.1,2.93502]
[1738340331432,0.015,3407.6,3407.0,2.9351]
[1738340331862,0.015,3407.6,3407.1,2.93501]
[1738340332479,0.015,3407.6,3406.9,2.93521]
[1738340332679,0.015,3407.6,3407.1,2.93497]
[1738340332878,0.015,3407.6,3407.3,2.9348]
[1738340333181,0.015,3407.6,3407.1,2.93502]
[1738340333548,0.015,3407.6,3407.2,2.93495]
[1738340334166,0.015,3407.6,3407.0,2.93513]
[1738340334356,0.015,3407.6,3406.8,2.93529]
[1738340334357,0.0075,3407.3,3406.8,2.93529]
[1738340335181,0.015,3407.3,3406.6,2.93539]
[1738340335337,0.015,3407.3,3406.7,2.93537]
[1738340335541,0.015,3407.3,3406.5,2.93551]
[1738340335542,0.015,3407.3,3406.8,2.9353]
[1738340335780,0.015,3407.3,3406.5,2.93551]
[1738340335982,0.015,3407.3,3406.7,2.93535]
[1738340336275,0.015,3407.3,3406.0,1.5653]
[1738340336439,0.015,3407.3,3406.5,2.93554]
[1738340336637,0.0075,3407.3,3406.1,0.18588271]
[1738340336868,1.8523,3407.7,3407.4,2.93473]
[1738340337092,0.222,3407.9,3407.4,2.93473]
[1738340337294,2.196414,3408.1,3407.4,2.93477]
[1738340337478,0.015,3408.0,3407.6,2.93458]
[1738340337794,0.015,3408.0,3407.4,2.93477]
[1738340338092,0.015,3408.0,3407.5,2.93468]
[1738340338309,0.015,3408.0,3407.3,2.93484]
[1738340338610,0.015,3407.8,3407.3,2.93484]
[1738340338803,0.0075,3407.7,3407.2,2.93494]
[1738340339301,0.0075,3407.7,3407.3,2.9348]
[1738340339457,0.0075,3407.7,3407.2,2.93494]
[1738340339901,0.0075,3407.7,3407.0,2.93513]
[1738340340213,1.6096,3408.1,3407.0,0.293513]
[1738340340425,3.15584,3408.5,3407.8,2.93437]
[1738340340556,0.015,3408.4,3407.8,2.93437]
[1738340340757,0.788019,3408.4,3407.8,2.93437]
[1738340341198,3.722019,3408.4,3407.6,2.9346]
[1738340341402,3.722019,3408.4,3407.4,2.93478]
[1738340341605,0.015,3408.1,3407.5,2.93462]
[1738340341905,0.237,3408.1,3407.5,2.93462]
[1738340342063,0.237,3408.1,3407.6,2.93456]
[1738340342264,0.6314069,3408.1,3406.9,1.6396]
[1738340342496,0.237,3408.1,3407.7,2.93449]
[1738340342695,2.22395371,3408.7,3407.8,1.64424353]
[1738340342957,2.535,3409.0,3408.9,2.93349]
[1738340343158,0.222,3409.3,3408.9,2.93349]
[1738340343362,0.222,3409.3,3409.1,2.93331]
[1738340343552,0.222,3409.3,3408.8,2.93352]
[1738340343857,0.0075,3409.2,3409.0,2.93333]
[1738340344056,0.0075,3409.2,3408.8,2.93352]
[1738340344057,0.0075,3409.2,3409.1,2.93332]
[1738340344512,0.222,3409.3,3409.2,2.93323]
[1738340345243,0.222,3409.3,3408.2,1.6566]
[1738340345450,0.0075,3409.6,3409.3,2.93308]
[1738340345649,4.5764,3410.1,3409.4,2.93299]
[1738340345798,4.5764,3410.1,3408.8,11.73432]
[1738340345799,1.6439,3410.1,3408.8,11.73432]
[1738340346003,2.93224,3410.4,3409.7,2.9328]
[1738340346204,2.93224,3410.4,3409.7,2.93277]
[1738340346430,2.93224,3410.4,3409.5,2.93298]
[1738340346431,0.0075,3410.3,3409.3,2.93312]
[1738340346636,0.015,3409.9,3409.4,2.93305]
[1738340346801,0.015,3409.9,3409.3,2.93314]
[1738340347207,0.0075,3409.9,3409.4,2.93302]
[1738340347405,0.015,3409.6,3408.8,2.93355]
[1738340347953,0.015,3409.6,3409.1,2.93331]
[1738340348152,0.603045,3409.6,3409.1,2.93331]
[1738340348447,0.603045,3409.6,3409.2,2.93322]
[1738340348758,0.221,3410.2,3409.5,2.93295]
[1738340349050,0.015,3410.1,3409.5,2.93295]
[1738340349200,0.0075,3410.1,3409.5,2.93295]
[1738340349405,0.221,3410.3,3409.3,2.93312]
[1738340349708,2.9478,3409.8,3409.2,2.93323]
[1738340349908,0.015,3409.8,3409.2,2.93323]
[1738340350352,0.015,3409.4,3408.8,2.93352]
[1738340350655,1.6441,3409.5,3408.7,2.93361]
[1738340350656,0.0075,3409.2,3408.9,2.93349]
[1738340350808,0.0075,3409.2,3407.7,2.93449]
[1738340350809,0.015,3409.2,3408.1,2.93413]
[1738340351024,3.82744049,3409.7,3407.4,1.6102]
[1738340351025,0.015,3408.7,3407.4,1.6102]
[1738340351209,0.0075,3408.5,3408.0,2.93423]
[1738340351518,0.22,3408.6,3408.4,2.93386]
[1738340351955,0.22,3408.6,3408.4,2.43386]
[1738340352255,0.22,3408.6,3408.5,2.93384]
[1738340352571,0.22,3408.6,3408.4,4.546054]
[1738340352572,1.5545,3409.6,3408.4,2.112194]
[1738340352848,1.5545,3409.6,3409.1,2.93331]
[1738340353016,0.015,3409.5,3409.1,2.93331]
[1738340353223,0.0075,3409.5,3409.1,2.93331]
[1738340353607,0.015,3409.5,3409.1,2.93331]
[1738340354240,0.0075,3409.5,3409.3,2.93314]
[1738340354450,1.5562,3410.0,3409.3,2.93314]
[1738340354756,0.015,3409.8,3409.0,2.93334]
[1738340355055,2.94774,3409.8,3409.1,2.93327]
[1738340355206,2.94774,3409.8,3408.5,0.15754]
[1738340355207,0.780658,3409.8,3408.5,0.15754]
[1738340355410,0.0075,3409.8,3409.5,2.93292]
[1738340355861,0.0075,3409.8,3409.2,2.93316]
[1738340356056,0.0075,3409.8,3409.2,2.93322]
[1738340356355,0.0075,3409.8,3409.3,2.93312]
[1738340356520,0.0075,3409.7,3409.3,2.93312]
[1738340357238,0.0075,3409.8,3408.8,0.02932904]
[1738340357642,0.0075,3409.8,3409.4,2.93303]
[1738340358027,0.0075,3409.8,3409.5,2.93297]
[1738340358227,0.479867,3409.8,3409.5,2.93297]
[1738340358414,2.08060532,3410.4,3409.8,2.93265]
[1738340358752,1.5019,3410.4,3409.8,2.93265]
[1738340358922,0.015,3410.3,3409.8,2.93265]
[1738340360366,0.015,3410.3,3409.4,2.93303]
[1738340360575,0.0075,3409.9,3409.4,2.93303]
[1738340360738,0.0075,3409.8,3409.4,2.93303]
[1738340361656,0.0075,3409.8,3409.2,2.93321]
[1738340361862,0.015,3409.6,3409.0,2.93332]
[1738340362062,0.015,3409.6,3408.9,2.93342]
[1738340362262,0.015,3409.6,3407.0,2.93509]
[1738340362263,0.015,3409.4,3408.1,2.93412]
[1738340362462,0.015,3408.5,3408.0,2.93421]
[1738340362663,2.94891,3408.5,3407.8,2.93441]
[1738340363250,2.94891,3408.5,3408.0,2.93424]
[1738340363251,0.015,3408.5,3408.0,2.93424]
[1738340363928,0.22,3408.9,3408.5,2.93384]
[1738340364262,0.22,3408.9,3407.6,0.0293419]
[1738340364263,0.0075,3408.6,3407.9,2.93434]
[1738340364573,0.0075,3408.6,3407.5,1.5016]
[1738340364574,0.015,3408.3,3407.7,2.93452]
[1738340364725,0.0075,3408.5,3408.0,2.93421]
[1738340364726,0.015,3408.5,3408.0,2.93421]
[1738340364927,0.0075,3408.5,3407.6,0.02934182]
[1738340365127,0.22,3408.9,3407.8,2.93435]
[1738340365355,0.22,3408.9,3408.2,2.93403]
[1738340365576,2.94887,3408.5,3407.9,2.9343]
[1738340365745,0.015,3408.3,3407.9,2.9343]
[1738340366363,0.0075,3408.1,3407.6,2.93455]
[1738340366875,0.0075,3408.1,3407.7,2.93447]
[1738340367055,0.0075,3408.2,3407.7,2.93447]
[1738340367391,0.0075,3407.9,3407.4,2.93475]
[1738340367593,0.0075,3407.8,3407.4,2.93475]
[1738340368148,0.0075,3407.8,3407.2,5.86981]
[1738340368348,0.015,3407.5,3407.0,2.9351]
[1738340368603,0.015,3407.5,3407.1,2.93498]
[1738340368774,0.015,3407.3,3406.8,2.93528]
[1738340370208,0.015,3407.3,3406.6,2.93545]
[1738340370414,0.015,3407.1,3406.6,2.93545]
[1738340370564,0.015,3407.1,3406.6,2.93543]
[1738340370763,0.015,3407.1,3406.4,2.93562]
[1738340370764,0.015,3406.9,3406.4,2.93562]
[1738340370963,2.95022,3406.9,3406.4,2.93562]
[1738340371266,2.95022,3406.9,3406.3,2.93573]
[1738340371496,0.015,3406.9,3406.3,2.93573]
[1738340372196,0.015,3406.9,3406.5,2.93556]
[1738340372578,0.015,3406.9,3404.8,0.2]
[1738340372579,0.015,3406.7,3405.3,1.545]
[1738340372796,1.6243,3406.0,3405.2,3.1109185]
[1738340373095,0.015,3405.8,3405.5,2.93635]
[1738340373278,0.218,3406.1,3405.4,0.02936268]
[1738340373628,0.218,3406.1,3405.2,0.1742385]
[1738340373777,0.218,3406.1,3406.0,2.93599]
[1738340374613,0.0075,3406.0,3405.5,2.93635]
[1738340374961,0.218,3406.1,3406.0,2.93599]